bitfinex-derivatives/quotes_BTCF0:USTF0_20260207
["timestamp","ask_amount","ask_price","bid_price","bid_amount"]
[1770461488528,0.55430506,67884.0,67850.0,0.15198933]
[1770461488718,0.014742,67870.0,67852.0,0.014746]
[1770461489123,0.014742,67870.0,67852.0,0.54374428]
[1770461490828,0.55430506,67882.0,67859.0,0.52899828]
[1770461491024,0.01474,67878.0,67862.0,0.014744]
[1770461491627,0.01474,67878.0,67862.0,0.54374228]
[1770461491836,0.014743,67868.0,67853.0,0.014746]
[1770461492533,0.55430506,67868.0,67845.0,0.52899828]
[1770461492833,0.55430506,67868.0,67846.0,0.014747]
[1770461493129,0.55430506,67868.0,67843.0,0.014748]
[1770461493532,0.014745,67857.0,67843.0,0.014748]
[1770461495122,0.014744,67860.0,67843.0,0.014748]
[1770461495529,0.014744,67860.0,67843.0,0.54374628]
[1770461496125,0.55430506,67868.0,67845.0,0.57119623]
[1770461496523,0.58800105,67876.0,67845.0,0.57119623]
[1770461496729,0.014744,67861.0,67845.0,0.57119623]
[1770461497124,0.014744,67861.0,67845.0,0.58594323]
[1770461497330,0.014744,67864.0,67847.0,0.58594323]
[1770461498036,0.014744,67864.0,67849.0,0.58594323]
[1770461498231,0.014744,67864.0,67849.0,0.57119623]
[1770461498430,0.014744,67862.0,67846.0,0.014747]
[1770461499339,0.014744,67862.0,67843.0,0.014748]
[1770461500039,0.014744,67860.0,67843.0,0.014748]
[1770461500339,0.57326005,67867.0,67846.0,0.57119623]
[1770461500833,0.01474,67879.0,67837.0,0.014749]
[1770461500834,0.014746,67854.0,67837.0,0.014749]
[1770461501628,0.014746,67854.0,67836.0,0.0001859]
[1770461501937,0.014746,67854.0,67836.0,0.0149349]
[1770461502140,0.014746,67854.0,67836.0,0.58613113]
[1770461502526,0.014745,67859.0,67841.0,0.58594423]
[1770461502726,0.57326005,67871.0,67841.0,0.58594423]
[1770461502727,0.014745,67858.0,67841.0,0.57119623]
[1770461503134,0.014744,67861.0,67841.0,0.57119623]
[1770461503339,0.014745,67859.0,67843.0,0.57119623]
[1770461503539,0.57326005,67867.0,67843.0,0.57119623]
[1770461504338,0.014745,67859.0,67843.0,0.57119623]
[1770461504643,0.57326005,67867.0,67843.0,0.57119623]
[1770461505144,0.014745,67858.0,67843.0,0.57119623]
[1770461505437,0.014743,67865.0,67843.0,0.57119623]
[1770461505740,0.014746,67854.0,67843.0,0.57119623]
[1770461506934,0.014746,67854.0,67837.0,0.014749]
[1770461507241,0.014746,67854.0,67837.0,0.58594523]
[1770461508237,0.57326005,67864.0,67840.0,0.57119623]
[1770461508444,0.014744,67860.0,67844.0,0.57119623]
[1770461508642,0.014746,67854.0,67844.0,0.57119623]
[1770461508846,0.014745,67857.0,67844.0,0.57119623]
[1770461509840,0.57326005,67865.0,67844.0,0.57119623]
[1770461509841,0.57326005,67865.0,67844.0,0.58594423]
[1770461510042,0.57326005,67865.0,67844.0,0.57119623]
[1770461510345,0.014744,67862.0,67847.0,0.57119623]
[1770461510644,0.58800205,67871.0,67847.0,0.57119623]
[1770461511340,0.57326005,67871.0,67852.0,0.57119623]
[1770461511544,0.57326005,67886.0,67857.0,0.57119623]
[1770461511739,0.57326005,67886.0,67864.0,0.014743]
[1770461511935,0.014741,67874.0,67862.0,0.57119623]
[1770461512134,0.014742,67871.0,67862.0,0.57119623]
[1770461512344,0.014738,67891.0,67853.0,0.74592062]
[1770461512345,0.58800005,67879.0,67853.0,0.74592062]
[1770461512540,0.57326005,67868.0,67846.0,0.17472439]
[1770461512738,0.014745,67856.0,67841.0,0.57119623]
[1770461512943,0.014745,67856.0,67841.0,0.58594423]
[1770461513540,0.57326005,67866.0,67841.0,0.58594423]
[1770461513743,0.57326005,67866.0,67844.0,0.57119623]
[1770461513948,0.014743,67868.0,67853.0,0.014746]
[1770461514443,0.014743,67868.0,67850.0,0.58594223]
[1770461514639,0.57326005,67876.0,67852.0,0.58594223]
[1770461514841,0.014743,67867.0,67852.0,0.58594223]
[1770461515142,0.58799905,67884.0,67855.0,0.57119623]
[1770461515344,0.014742,67872.0,67857.0,0.57119623]
[1770461516052,0.014742,67872.0,67858.0,0.014745]
[1770461516346,0.57326005,67884.0,67860.0,0.014744]
[1770461516649,0.57326005,67884.0,67862.0,0.014744]
[1770461517345,0.57326005,67884.0,67862.0,0.58594023]
[1770461517740,0.57326005,67884.0,67864.0,0.58593923]
[1770461517947,0.0002,67898.0,67864.0,0.58593923]
[1770461517948,0.014738,67890.0,67866.0,0.014743]
[1770461518254,0.58799805,67890.0,67866.0,0.014743]
[1770461518454,0.01474,67880.0,67864.0,0.57119623]
[1770461521149,0.014741,67874.0,67860.0,0.014744]
[1770461521355,0.014741,67874.0,67859.0,0.014744]
[1770461521654,0.014742,67872.0,67857.0,0.57119623]
[1770461522554,0.57326005,67868.0,67849.0,0.17472439]
[1770461522852,0.014746,67854.0,67837.0,0.58594523]
[1770461523650,0.57326005,67868.0,67841.0,0.57119623]
[1770461523855,0.014746,67867.0,67852.0,0.58594223]
[1770461524154,0.014742,67871.0,67854.0,0.014746]
[1770461524360,0.014742,67871.0,67854.0,0.58594223]
[1770461524548,0.014741,67874.0,67857.0,0.57119623]
[1770461524748,0.014742,67870.0,67857.0,0.57119623]
[1770461525561,0.014741,67873.0,67857.0,0.57119623]
[1770461526157,0.57326005,67884.0,67857.0,0.57119623]
[1770461526353,0.57326005,67884.0,67857.0,0.58594123]
[1770461526554,0.014742,67872.0,67857.0,0.57119623]
[1770461527959,0.014741,67876.0,67857.0,0.58594123]
[1770461528160,0.014741,67876.0,67860.0,0.55496575]
[1770461528359,0.014741,67876.0,67862.0,0.55496575]
[1770461528956,0.014741,67877.0,67862.0,0.55496575]
[1770461529156,0.01474,67880.0,67865.0,0.56970875]
[1770461529455,0.014739,67886.0,67869.0,0.014742]
[1770461529662,0.014739,67884.0,67867.0,0.55496575]
[1770461530854,0.01474,67882.0,67867.0,0.55496575]
[1770461531160,0.53457104,67909.0,67867.0,0.57405417]
[1770461531363,0.014738,67889.0,67871.0,0.57405417]
[1770461531564,0.014738,67889.0,67873.0,0.57405417]
[1770461531960,0.53457104,67888.0,67865.0,0.57405417]
[1770461532264,0.01474,67882.0,67865.0,0.57405417]
[1770461532563,0.014741,67877.0,67865.0,0.57405417]
[1770461532864,0.54931004,67884.0,67865.0,0.57405417]
[1770461533665,0.014741,67874.0,67865.0,0.57405417]
[1770461535266,0.014742,67872.0,67856.0,0.57405417]
[1770461536666,0.014743,67868.0,67856.0,0.57405417]
[1770461536861,0.53457104,67875.0,67856.0,0.57405417]
[1770461537065,0.53457104,67883.0,67856.0,0.57405417]
[1770461537257,0.014742,67872.0,67857.0,0.014745]
[1770461537459,0.014742,67872.0,67858.0,0.57405417]
[1770461537764,0.014739,67884.0,67854.0,0.014745]
[1770461537765,0.014742,67870.0,67854.0,0.014745]
[1770461537964,0.53457104,67874.0,67851.0,0.014746]
[1770461538171,0.014742,67870.0,67853.0,0.014746]
[1770461538670,0.014742,67873.0,67854.0,0.57405417]
[1770461538969,0.014742,67871.0,67854.0,0.57405417]
[1770461539762,0.014742,67871.0,67855.0,0.014745]
[1770461539963,0.014741,67877.0,67860.0,0.57405417]
[1770461540261,0.014741,67877.0,67862.0,0.57405417]
[1770461541062,0.014741,67875.0,67862.0,0.57405417]
[1770461542572,0.01474,67878.0,67864.0,0.57405417]
[1770461542764,0.01474,67878.0,67850.0,0.16680862]
[1770461542765,0.014741,67874.0,67859.0,0.13237973]
[1770461543072,0.53457104,67871.0,67851.0,0.11763573]
[1770461543267,0.014743,67868.0,67854.0,0.014746]
[1770461543572,0.53457104,67871.0,67856.0,0.014745]
[1770461544470,0.53457104,67871.0,67854.0,0.11763573]
[1770461544765,0.014738,67887.0,67857.0,0.014745]
[1770461544766,0.014741,67875.0,67857.0,0.014745]
[1770461544963,0.014742,67873.0,67856.0,0.57405417]
[1770461545760,0.014742,67871.0,67856.0,0.57405417]
[1770461546572,0.014742,67871.0,67856.0,0.6916899]
[1770461546773,0.014742,67871.0,67857.0,0.11763573]
[1770461546973,0.014742,67871.0,67857.0,0.6916899]
[1770461548076,0.014741,67874.0,67857.0,0.6916899]
[1770461548470,0.014741,67875.0,67859.0,0.57405417]
[1770461549367,0.014741,67873.0,67859.0,0.57405417]
[1770461550672,0.014741,67876.0,67859.0,0.57405417]
[1770461550979,0.014741,67874.0,67859.0,0.57405417]
[1770461551279,0.014742,67872.0,67859.0,0.57405417]
[1770461551878,0.014738,67890.0,67875.0,0.57405417]
[1770461552478,0.014738,67888.0,67875.0,0.57405417]
[1770461552681,0.014739,67886.0,67875.0,0.57405417]
[1770461552877,0.014739,67884.0,67869.0,0.57405417]
[1770461553174,0.01474,67882.0,67869.0,0.57405417]
[1770461553379,0.014739,67885.0,67871.0,0.57405417]
[1770461553880,0.01474,67881.0,67871.0,0.57405417]
[1770461554076,0.01474,67879.0,67864.0,0.58879717]
[1770461554375,0.01474,67879.0,67864.0,0.7064329]
[1770461555173,0.01474,67882.0,67868.0,0.014742]
[1770461555585,0.01474,67880.0,67866.0,0.57405417]
[1770461555973,0.5721506,67881.0,67861.0,0.11763573]
[1770461556173,0.5721506,67881.0,67859.0,0.57181402]
[1770461556174,0.014742,67873.0,67859.0,0.68944975]
[1770461556686,0.014742,67873.0,67859.0,0.57181402]
[1770461556886,0.014739,67883.0,67864.0,0.57181402]
[1770461557180,0.014739,67883.0,67864.0,0.68944975]
[1770461557382,0.014739,67883.0,67865.0,0.57181402]
[1770461558487,0.014739,67886.0,67869.0,0.57181402]
[1770461558783,0.014738,67888.0,67874.0,0.57181402]
[1770461559684,0.014739,67886.0,67874.0,0.57181402]
[1770461560285,0.5721506,67896.0,67874.0,0.58655502]
[1770461560782,0.014738,67888.0,67874.0,0.57181402]
[1770461560984,0.014739,67886.0,67874.0,0.57181402]
[1770461562981,0.014739,67885.0,67874.0,0.57181402]
[1770461563578,0.5721506,67905.0,67874.0,0.57181402]
[1770461563782,0.014737,67894.0,67881.0,0.58655402]
[1770461564087,0.014736,67897.0,67881.0,0.58655402]
[1770461564588,0.014736,67901.0,67887.0,0.57181402]
[1770461564882,0.014732,67917.0,67886.0,0.57181402]
[1770461564883,0.014736,67899.0,67886.0,0.57181402]
[1770461565186,0.014736,67900.0,67886.0,0.57181402]
[1770461565373,0.014733,67913.0,67887.0,0.57181402]
[1770461565581,0.014733,67912.0,67896.0,0.57181402]
[1770461565778,0.014733,67912.0,67896.0,0.58655002]
[1770461566584,0.014732,67915.0,67898.0,0.58655002]
[1770461566786,0.014733,67913.0,67898.0,0.58655002]
[1770461567187,0.014733,67913.0,67898.0,0.57181402]
[1770461567384,0.014733,67911.0,67898.0,0.57181402]
[1770461567789,0.014733,67914.0,67898.0,0.58655002]
[1770461568578,0.014733,67912.0,67898.0,0.57181402]
[1770461569183,0.5868846,67910.0,67895.0,0.014737]
[1770461571690,0.5721506,67905.0,67892.0,0.014737]
[1770461573084,0.5721506,67905.0,67876.0,0.57181402]
[1770461573282,0.014733,67914.0,67881.0,0.01474]
[1770461573283,0.014736,67899.0,67881.0,0.01474]
[1770461573690,0.014736,67899.0,67884.0,0.57181402]
[1770461574087,0.5721506,67902.0,67884.0,0.57181402]
[1770461574088,0.014736,67897.0,67884.0,0.57181402]
[1770461575490,0.014736,67897.0,67882.0,0.014739]
[1770461575790,0.014736,67900.0,67885.0,0.57181402]
[1770461576492,0.5721506,67916.0,67896.0,0.57181402]
[1770461576792,0.014734,67909.0,67896.0,0.57181402]
[1770461578285,0.5721506,67916.0,67896.0,0.58655002]
[1770461578286,0.014733,67912.0,67896.0,0.58655002]
[1770461578678,0.014733,67910.0,67896.0,0.58655002]
[1770461579785,0.5721506,67925.0,67900.0,0.57181402]
[1770461579993,0.014732,67917.0,67902.0,0.014735]
[1770461581891,0.015732,67917.0,67902.0,0.014735]
[1770461582093,0.001,67917.0,67904.0,0.014735]
[1770461582291,0.0002,67929.0,67916.0,0.014732]
[1770461582696,0.0002,67934.0,67916.0,0.014732]
[1770461583086,0.0002,67934.0,67916.0,0.58654602]
[1770461583288,0.014729,67932.0,67917.0,0.58654602]
[1770461584092,0.0002,67945.0,67927.0,0.57181402]
[1770461585000,0.014726,67946.0,67931.0,0.57181402]
[1770461585194,0.5868786,67935.0,67915.0,0.57181402]
[1770461585500,0.014727,67938.0,67918.0,0.57181402]
[1770461585797,0.014727,67938.0,67919.0,0.58654502]
[1770461586101,0.014728,67934.0,67919.0,0.58654502]
[1770461587101,0.014728,67935.0,67919.0,0.58654502]
[1770461589194,0.014726,67943.0,67927.0,0.01473]
[1770461589503,0.52838483,67951.0,67915.0,0.5809547]
[1770461589694,0.52838483,67939.0,67919.0,0.014731]
[1770461589893,0.014727,67940.0,67922.0,0.57527392]
[1770461590101,0.014727,67940.0,67923.0,0.59000492]
[1770461591200,0.014726,67943.0,67923.0,0.59000492]
[1770461591599,0.014727,67941.0,67923.0,0.59000492]
[1770461591899,0.014726,67946.0,67931.0,0.57527392]
[1770461592297,0.014727,67942.0,67922.0,0.57527392]
[1770461592599,0.54064542,67951.0,67926.0,0.57527392]
[1770461592803,0.014726,67946.0,67930.0,0.57527392]
[1770461593402,0.014726,67946.0,67912.0,0.1173073]
[1770461593403,0.54084542,67950.0,67923.0,0.57527392]
[1770461593796,0.54064542,67948.0,67923.0,0.57527392]
[1770461594202,0.014728,67937.0,67923.0,0.57527392]
[1770461594399,0.014728,67935.0,67923.0,0.57527392]
[1770461594905,0.01473,67928.0,67923.0,9.2e-07]
[1770461595204,0.014729,67931.0,67916.0,0.57527392]
[1770461596801,0.014728,67934.0,67916.0,0.59000592]
[1770461599305,0.014728,67934.0,67919.0,0.57527392]
[1770461601201,0.014728,67934.0,67919.0,0.59000492]
[1770461602207,0.014728,67934.0,67919.0,0.57527392]
[1770461603404,0.014729,67930.0,67919.0,0.57527392]
[1770461603610,0.014729,67933.0,67919.0,0.57527392]
[1770461604114,0.014729,67932.0,67919.0,0.57527392]
[1770461604313,0.014729,67938.0,67919.0,0.57527392]
[1770461604613,0.014729,67931.0,67919.0,0.57527392]
[1770461605003,0.014728,67934.0,67921.0,0.57527392]
[1770461605917,0.014726,67942.0,67930.0,0.57527392]
[1770461606206,0.014727,67938.0,67930.0,0.57527392]
[1770461606611,0.014727,67941.0,67930.0,0.57527392]
[1770461607010,0.014728,67937.0,67930.0,0.57527392]
[1770461608917,0.0002,67950.0,67930.0,0.57527392]
[1770461609422,0.54064542,67952.0,67930.0,0.57527392]
[1770461609811,0.014727,67940.0,67930.0,0.57527392]
[1770461610106,0.55536842,67956.0,67934.0,0.57527392]
[1770461610314,0.014727,67941.0,67934.0,0.57527392]
[1770461610618,0.014727,67939.0,67926.0,0.59000392]
[1770461611025,0.014727,67939.0,67926.0,0.57527392]
[1770461613629,0.014729,67931.0,67923.0,0.1173073]
[1770461613826,0.014729,67931.0,67918.0,0.57527392]
[1770461613827,0.014729,67931.0,67921.0,0.1173073]
[1770461614020,0.014729,67931.0,67921.0,0.57527392]
[1770461614223,0.014733,67913.0,67906.0,0.21960803]
[1770461614515,0.014733,67913.0,67900.0,0.57527392]
[1770461614721,0.014733,67911.0,67900.0,0.57527392]
[1770461615024,0.014733,67914.0,67900.0,0.57527392]
[1770461615221,0.014733,67914.0,67891.0,0.21960803]
[1770461615222,0.014732,67917.0,67902.0,0.57527392]
[1770461615622,0.014732,67915.0,67902.0,0.57527392]
[1770461616130,0.0002,67932.0,67902.0,0.57527392]
[1770461616131,0.014734,67905.0,67902.0,9.2e-07]
[1770461616327,0.014734,67905.0,67888.0,0.014738]
[1770461616328,0.014734,67905.0,67895.0,0.55501137]
[1770461616636,0.014735,67905.0,67895.0,3.7e-07]
[1770461617134,0.014733,67911.0,67887.0,0.10378989]
[1770461617525,0.014736,67899.0,67887.0,0.10378989]
[1770461617724,0.54463352,67906.0,67887.0,0.10378989]
[1770461617928,0.014733,67911.0,67879.0,0.01231043]
[1770461617929,0.57922985,67904.0,67879.0,0.01231043]
[1770461618931,0.014738,67891.0,67879.0,0.01231043]
[1770461619233,0.029457,67889.0,67870.0,0.01231043]
[1770461619427,0.00011839,67888.0,67870.0,0.01231043]
[1770461619622,0.014739,67884.0,67870.0,0.01231043]
[1770461620531,0.014738,67887.0,67870.0,0.01231043]
[1770461623937,0.014739,67882.0,67870.0,0.01231043]
[1770461625233,0.57316045,67885.0,67863.0,0.03051863]
[1770461625428,0.01474,67881.0,67863.0,0.03051863]
[1770461626033,0.014739,67884.0,67863.0,0.03051863]
[1770461627126,0.014739,67884.0,67865.0,0.02967801]
[1770461627930,0.00011839,67888.0,67865.0,0.02967801]
[1770461628133,0.014738,67887.0,67869.0,0.02993654]
[1770461628433,0.014738,67887.0,67860.0,0.15183211]
[1770461628434,0.00011839,67888.0,67871.0,0.02993654]
[1770461629137,0.014737,67895.0,67876.0,0.02993654]
[1770461629338,0.57335448,67905.0,67881.0,0.02993654]
[1770461629339,0.014736,67898.0,67881.0,0.02993654]
[1770461630028,0.014737,67896.0,67881.0,0.02993654]
[1770461630731,0.014736,67900.0,67881.0,0.02993654]
[1770461631338,0.014736,67900.0,67883.0,0.02204535]
[1770461631937,0.014735,67903.0,67885.0,0.02442887]
[1770461632136,0.014735,67903.0,67880.0,0.15183211]
[1770461632137,0.014735,67903.0,67887.0,0.02442887]
[1770461632735,0.014733,67910.0,67894.0,0.014737]
[1770461632941,0.014734,67908.0,67892.0,0.02442887]
[1770461635437,0.029457,67907.0,67892.0,0.02442887]
[1770461635734,0.029457,67907.0,67896.0,0.02227597]
[1770461635936,0.014733,67912.0,67896.0,0.02227597]
[1770461636837,0.014734,67906.0,67889.0,0.03701397]
[1770461638338,0.014734,67909.0,67890.0,0.02434495]
[1770461638535,0.014734,67907.0,67890.0,0.02434495]
[1770461640542,0.014735,67905.0,67890.0,0.02434495]
[1770461640839,0.57416847,67907.0,67884.0,0.02749456]
[1770461641838,0.57453048,67904.0,67884.0,0.02749456]
[1770461642238,0.014736,67896.0,67884.0,0.02749456]
[1770461644741,0.014737,67894.0,67884.0,0.02749456]
[1770461645142,0.014736,67897.0,67884.0,0.02749456]
[1770461645940,0.014736,67900.0,67884.0,0.02749456]
[1770461646335,0.57567528,67911.0,67884.0,0.02749456]
[1770461646537,0.014732,67918.0,67903.0,0.02297415]
[1770461646837,0.57567528,67918.0,67894.0,0.02297415]
[1770461647038,0.57567528,67918.0,67883.0,0.29249553]
[1770461647039,0.57567528,67911.0,67886.0,0.014739]
[1770461647240,0.57567528,67911.0,67886.0,0.03771315]
[1770461647442,0.014735,67903.0,67886.0,0.03771315]
[1770461647845,0.014734,67908.0,67891.0,0.01788629]
[1770461648633,0.014733,67913.0,67900.0,0.01788629]
[1770461648838,0.014733,67911.0,67900.0,0.01788629]
[1770461653249,0.02140794,67911.0,67904.0,0.00804906]
[1770461653451,0.014732,67919.0,67904.0,0.00804906]
[1770461653652,0.014731,67921.0,67908.0,0.00209994]
[1770461655447,0.014731,67924.0,67908.0,0.00209994]
[1770461655645,0.0002,67936.0,67914.0,0.00135014]
[1770461655646,0.58288328,67935.0,67914.0,0.00135014]
[1770461657355,0.58288328,67935.0,67901.0,0.23434303]
[1770461657356,0.014728,67934.0,67915.0,0.00135014]
[1770461657857,0.014728,67934.0,67924.0,0.01517705]
[1770461658851,0.58288328,67935.0,67929.0,0.01517705]
[1770461659758,0.58288328,67935.0,67932.0,0.00200113]
[1770461659955,0.58288328,67935.0,67932.0,0.01517705]
[1770461660251,0.58388328,67935.0,67918.0,0.02299824]
[1770461660456,0.58388328,67935.0,67920.0,0.02299724]
[1770461660956,0.001,67935.0,67922.0,0.00826624]
[1770461661455,0.001,67935.0,67923.0,0.01517796]
[1770461661956,0.001,67935.0,67924.0,0.01517796]
[1770461662157,0.001,67935.0,67923.0,0.01517796]
[1770461662355,0.014728,67937.0,67923.0,0.01517796]
[1770461662356,0.014728,67937.0,67923.0,0.02349512]
[1770461662556,0.014727,67940.0,67924.0,0.02349512]
[1770461662852,0.014727,67940.0,67924.0,0.00831716]
[1770461663058,0.58057791,67942.0,67925.0,0.01517796]
[1770461663259,0.58057791,67942.0,67926.0,0.01517796]
[1770461663451,0.58057791,67942.0,67925.0,0.01517796]
[1770461663850,0.58057791,67942.0,67926.0,0.01517796]
[1770461664054,0.58057791,67942.0,67920.0,0.01517796]
[1770461664362,0.014728,67937.0,67920.0,0.02325765]
[1770461664559,0.014728,67937.0,67920.0,0.00807969]
[1770461664759,0.014728,67937.0,67921.0,0.01517796]
[1770461665262,0.014728,67937.0,67922.0,0.01517796]
[1770461665446,0.014728,67937.0,67921.0,0.01517796]
[1770461665646,0.014728,67937.0,67922.0,0.00741682]
[1770461665861,0.014728,67937.0,67922.0,0.02259478]
[1770461666058,0.014728,67937.0,67923.0,0.01517796]
[1770461666452,0.014728,67937.0,67924.0,0.01517796]
[1770461666757,0.014728,67937.0,67923.0,0.01517796]
[1770461667256,0.014728,67937.0,67924.0,0.01517796]
[1770461667463,0.02140794,67931.0,67923.0,0.02239113]
[1770461667755,0.60233688,67931.0,67910.0,0.15181489]
[1770461667961,0.59565994,67923.0,67911.0,0.00044696]
[1770461668150,0.59565994,67923.0,67906.0,0.014734]
[1770461668357,0.59565994,67923.0,67903.0,0.00721317]
[1770461668358,0.58092894,67923.0,67907.0,0.00044696]
[1770461668554,0.58092894,67923.0,67908.0,0.00044696]
[1770461668759,0.014732,67917.0,67899.0,0.014736]
[1770461668958,0.014733,67911.0,67900.0,0.00044696]
[1770461669152,0.58092894,67926.0,67907.0,0.02194717]
[1770461669461,0.58090751,67919.0,67900.0,0.00727746]
[1770461669662,0.58090751,67919.0,67900.0,0.02201246]
[1770461669857,0.58090751,67919.0,67901.0,0.00044696]
[1770461670256,0.58090751,67926.0,67903.0,0.00727746]
[1770461670459,0.58090751,67926.0,67908.0,0.00727746]
[1770461670767,0.58090751,67926.0,67910.0,0.00727746]
[1770461671262,0.01473,67928.0,67925.0,9.6e-07]
[1770461671567,0.01473,67926.0,67910.0,0.00727746]
[1770461672265,0.014729,67929.0,67911.0,0.00320334]
[1770461672454,0.014729,67929.0,67913.0,0.00320334]
[1770461673058,0.01473,67927.0,67913.0,0.00320334]
[1770461673253,0.014729,67929.0,67913.0,0.00320334]
[1770461673965,0.59563651,67932.0,67913.0,0.00320334]
[1770461674358,0.58217441,67938.0,67920.0,0.00347675]
[1770461675865,0.014729,67932.0,67920.0,0.00347675]
[1770461676458,0.58217441,67938.0,67920.0,0.00347675]
[1770461676459,0.014728,67935.0,67920.0,0.00347675]
[1770461676658,0.014728,67933.0,67920.0,0.00347675]
[1770461679470,0.0002,67945.0,67905.0,0.17610646]
[1770461679471,0.58087794,67924.0,67905.0,0.17610646]
[1770461679661,0.58087794,67930.0,67914.0,0.014732]
[1770461679861,0.014729,67929.0,67912.0,0.00736616]
[1770461681566,0.0002,67941.0,67923.0,0.01473]
[1770461681567,0.59422307,67940.0,67923.0,0.01473]
[1770461681870,0.57949607,67929.0,67915.0,0.11748272]
[1770461682270,0.57949607,67929.0,67916.0,0.11748272]
[1770461682462,0.02140794,67927.0,67916.0,0.11748272]
[1770461682867,0.57949607,67929.0,67917.0,0.11748272]
[1770461683166,0.59422507,67929.0,67914.0,0.11748272]
[1770461683368,0.57949607,67929.0,67915.0,0.11748272]
[1770461683563,0.014729,67931.0,67915.0,0.11748272]
[1770461684978,0.014729,67931.0,67915.0,0.12420353]
[1770461685365,0.014729,67931.0,67916.0,0.00672081]
[1770461687278,0.58109306,67933.0,67917.0,0.014732]
[1770461687472,0.58109306,67933.0,67918.0,0.00442932]
[1770461688567,0.58109306,67933.0,67919.0,0.014731]
[1770461688772,0.58109306,67933.0,67918.0,0.00442932]
[1770461688976,0.58109306,67933.0,67918.0,0.12191204]
[1770461689773,0.59582106,67933.0,67918.0,0.12191204]
[1770461690464,0.014729,67931.0,67918.0,0.12191204]
[1770461691276,0.58109306,67933.0,67918.0,0.12191204]
[1770461691474,0.014728,67934.0,67919.0,0.00291991]
[1770461693878,0.59780892,67934.0,67919.0,0.00291991]
[1770461695973,0.59697278,67933.0,67919.0,0.00291991]
[1770461697280,0.59697278,67933.0,67918.0,0.11748272]
[1770461697281,0.58224378,67930.0,67918.0,0.11748272]
[1770461697581,0.59697278,67930.0,67917.0,0.11748272]
[1770461697976,0.58261933,67927.0,67916.0,0.11748272]
[1770461698172,0.58261933,67932.0,67915.0,0.11748272]
[1770461698379,0.01473,67927.0,67915.0,0.11748272]
[1770461699176,0.59734933,67927.0,67915.0,0.11748272]
[1770461699476,0.58261933,67927.0,67916.0,0.11748272]
[1770461701082,0.58261933,67927.0,67917.0,0.11748272]
[1770461702083,0.59734933,67927.0,67917.0,0.11748272]
[1770461702787,0.58261933,67927.0,67917.0,0.11748272]
[1770461705889,0.59734933,67927.0,67917.0,0.11748272]
[1770461708389,0.58261933,67927.0,67917.0,0.11748272]
[1770461708684,0.014729,67930.0,67917.0,0.11748272]
[1770461708891,0.58215935,67933.0,67918.0,0.00352194]
[1770461709083,0.59688835,67932.0,67919.0,0.11748272]
[1770461709591,0.014729,67931.0,67920.0,0.11748272]
[1770461710390,0.5966505,67930.0,67920.0,0.11748272]
[1770461710688,0.5819215,67930.0,67920.0,0.11748272]
[1770461710889,0.014729,67929.0,67920.0,0.11748272]
[1770461711279,0.014729,67929.0,67920.0,0.12171819]
[1770461711678,0.014728,67935.0,67920.0,0.12171819]
[1770461711883,0.014728,67935.0,67921.0,0.11748272]
[1770461713291,0.014728,67935.0,67921.0,0.11992571]
[1770461714190,0.014728,67935.0,67922.0,0.00217757]
[1770461714390,0.014728,67933.0,67922.0,0.00217757]
[1770461714591,0.02140794,67931.0,67921.0,0.11748272]
[1770461714791,0.014728,67933.0,67921.0,0.11966029]
[1770461715087,0.014728,67936.0,67921.0,0.11966029]
[1770461715294,0.014726,67943.0,67927.0,0.00217757]
[1770461715492,0.59691661,67943.0,67927.0,0.00217757]
[1770461717295,0.58219061,67943.0,67929.0,0.01815714]
[1770461717487,0.0002,67948.0,67929.0,0.00342814]
[1770461717488,0.59674249,67942.0,67929.0,0.00342814]
[1770461718095,0.59674249,67942.0,67928.0,0.11748272]
[1770461718395,0.59674249,67942.0,67927.0,0.11748272]
[1770461719191,0.58201549,67938.0,67927.0,0.11748272]
[1770461719494,0.58201549,67938.0,67926.0,0.11748272]
[1770461719694,0.58201549,67938.0,67925.0,0.11748272]
[1770461719995,0.58333333,67954.0,67928.0,0.15179237]
[1770461720193,0.58333333,67941.0,67929.0,0.11748272]
[1770461720493,0.58333333,67941.0,67927.0,0.11748272]
[1770461720695,0.58333333,67948.0,67930.0,0.11748272]
[1770461721094,0.58333333,67948.0,67932.0,0.014729]
[1770461721289,0.014722,67961.0,67935.0,0.11748272]
[1770461721488,0.58205681,67954.0,67937.0,0.11748272]
[1770461721695,0.58205681,67952.0,67937.0,0.00382955]
[1770461722096,0.58205681,67952.0,67937.0,0.12131227]
[1770461722296,0.58205681,67952.0,67940.0,0.014727]
[1770461722492,0.0002,67959.0,67942.0,0.00382955]
[1770461722697,0.43785858,67999.0,67942.0,0.00382955]
[1770461722698,0.5878869,67977.0,67964.0,0.014722]
[1770461722898,0.58205681,67984.0,67965.0,0.00382955]
[1770461723098,0.58205681,67984.0,67966.0,0.00382955]
[1770461723290,0.58205681,67984.0,67962.0,0.11748272]
[1770461723491,0.58178947,67973.0,67954.0,0.11748272]
[1770461723691,0.58178947,67973.0,67954.0,0.00463156]
[1770461723895,0.58178947,67973.0,67957.0,0.014723]
[1770461724102,0.5911289,67986.0,67964.0,0.02076429]
[1770461724495,0.5911289,67986.0,67960.0,0.15166648]
[1770461724496,0.5764119,67986.0,67967.0,0.02076429]
[1770461724895,0.5764119,67986.0,67970.0,0.01472]
[1770461725189,0.5764119,67986.0,67970.0,0.03548429]
[1770461725397,0.5764119,67986.0,67970.0,0.18703906]
[1770461725594,0.59067599,67993.0,67972.0,0.01472]
[1770461725997,0.59067599,67993.0,67973.0,0.02211701]
[1770461726193,0.0002,67985.0,67974.0,0.03683601]
[1770461726496,0.57616099,67993.0,67975.0,0.02211701]
[1770461726896,0.0002,67993.0,67976.0,0.014719]
[1770461727102,0.0002,67993.0,67980.0,0.014718]
[1770461727602,0.57596099,67995.0,67980.0,0.014718]
[1770461727998,0.59141263,68001.0,67980.0,0.03462209]
[1770461728195,0.0002,67994.0,67982.0,0.03462209]
[1770461728393,0.0002,67994.0,67984.0,0.014717]
[1770461728601,0.0002,67994.0,67985.0,0.01990409]
[1770461728802,0.0002,68003.0,67985.0,0.01990409]
[1770461729197,0.0002,68003.0,67990.0,0.15155477]
[1770461729503,0.57669863,68021.0,68002.0,0.014713]
[1770461729697,0.0002,68011.0,68003.0,0.02368221]
[1770461730000,0.0002,68017.0,68003.0,0.02368221]
[1770461730194,0.0002,68017.0,68003.0,0.03839521]
[1770461730797,0.57563926,68017.0,67996.0,0.02368221]
[1770461730997,0.57563926,68017.0,67990.0,0.15155477]
[1770461730998,0.57543926,68006.0,67990.0,0.15155477]